[Event "November 21 Early 2023"]
[Site "https://www.chess.com"]
[Date "2023.11.21"]
[Round "7"]
[White "IsaqueGoncalvesSanto"]
[Black "Burovic00"]
[Result "0-1"]
[Board "141"]
[TimeControl "180+1"]
[WhiteElo "1945"]
[BlackElo "2399"]
[WhiteClock "0:00:00"]
[BlackClock "0:01:49"]

1. d4 {[%clk 0:03:00]}  g6 {[%clk 0:02:59]} 2. c4 {[%clk 0:03:01]}  Bg7 {[%clk 0:03:00]} 3. Nc3 {[%clk 0:03:01]}  d6 {[%clk 0:03:01]} 4. e4 {[%clk 0:03:00]}  e5 {[%clk 0:03:01]} 5. d5 {[%clk 0:03:00]}  a5 {[%clk 0:03:01]} 6. Nge2 {[%clk 0:03:00]}  Na6 {[%clk 0:03:00]} 7. Ng3 {[%clk 0:03:00]}  h5 {[%clk 0:02:55]} 8. Bd3 {[%clk 0:02:59]}  h4 {[%clk 0:02:54]} 9. Nge2 {[%clk 0:02:58]}  h3 {[%clk 0:02:54]} 10. g3 {[%clk 0:02:51]}  Bg4 {[%clk 0:02:54]} 11. Qa4+ {[%clk 0:02:40]}  Kf8 {[%clk 0:02:47]} 12. Ng1 {[%clk 0:02:39]}  Nc5 {[%clk 0:02:45]} 13. Qc2 {[%clk 0:02:34]}  Bh6 {[%clk 0:02:44]} 14. Bxh6+ {[%clk 0:02:12]}  Nxh6 {[%clk 0:02:45]} 15. f3 {[%clk 0:02:12]}  Bd7 {[%clk 0:02:44]} 16. g4 {[%clk 0:02:11]}  Qh4+ {[%clk 0:02:41]} 17. Kf1 {[%clk 0:01:56]}  Bxg4 {[%clk 0:02:17]} 18. fxg4 {[%clk 0:01:55]}  Nxg4 {[%clk 0:02:18]} 19. Nf3 {[%clk 0:01:39]}  Ne3+ {[%clk 0:02:09]} 20. Ke2 {[%clk 0:01:34]}  Nxc2 {[%clk 0:01:56]} 21. Nxh4 {[%clk 0:01:34]}  Nd4+ {[%clk 0:01:57]} 22. Kd2 {[%clk 0:01:29]}  Rxh4 {[%clk 0:01:58]} 23. Raf1 {[%clk 0:01:16]}  Kg7 {[%clk 0:01:57]} 24. Rf2 {[%clk 0:01:11]}  f6 {[%clk 0:01:56]} 25. Rhf1 {[%clk 0:01:10]}  Rf8 {[%clk 0:01:56]} 26. Bb1 {[%clk 0:01:01]}  Rg4 {[%clk 0:01:47]} 27. Nb5 {[%clk 0:00:27]}  Nxb5 {[%clk 0:01:46]} 28. cxb5 {[%clk 0:00:27]}  Nxe4+ {[%clk 0:01:46]} 29. Bxe4 {[%clk 0:00:23]}  Rxe4 {[%clk 0:01:47]} 30. Rf3 {[%clk 0:00:20]}  Rd4+ {[%clk 0:01:46]} 31. Rd3 {[%clk 0:00:20]}  Rxd3+ {[%clk 0:01:47]} 32. Kxd3 {[%clk 0:00:20]}  b6 {[%clk 0:01:48]} 33. Rc1 {[%clk 0:00:20]}  Rf7 {[%clk 0:01:48]} 34. Ke3 {[%clk 0:00:19]}  f5 {[%clk 0:01:48]} 35. Kf3 {[%clk 0:00:19]}  Kf6 {[%clk 0:01:49]} 36. Kg3 {[%clk 0:00:19]}  Rh7 {[%clk 0:01:49]} 37. b3 {[%clk 0:00:18]}  g5 {[%clk 0:01:50]} 38. a3 {[%clk 0:00:18]}  g4 {[%clk 0:01:50]} 39. b4 {[%clk 0:00:18]}  a4 {[%clk 0:01:50]} 40. Rf1 {[%clk 0:00:16]}  Kg5 {[%clk 0:01:50]} 41. Rc1 {[%clk 0:00:12]}  f4+ {[%clk 0:01:50]} 42. Kf2 {[%clk 0:00:11]}  Kf5 {[%clk 0:01:51]} 43. Rc4 {[%clk 0:00:10]}  Rg7 {[%clk 0:01:50]} 44. Kg1 {[%clk 0:00:08]}  g3 {[%clk 0:01:50]} 45. hxg3 {[%clk 0:00:08]}  fxg3 {[%clk 0:01:50]} 46. Rc3 {[%clk 0:00:07]}  Ke4 {[%clk 0:01:49]} 47. Rc1 {[%clk 0:00:00]}  Kxd5 {[%clk 0:01:49]} 0-1

[Event "November 21 Early 2023"]
[Site "https://www.chess.com"]
[Date "2023.11.21"]
[Round "7"]
[White "Matveeva, Olga"]
[Black "Iskusnyh, Sergei"]
[Result "0-1"]
[Board "146"]
[TimeControl "180+1"]
[WhiteFideId "24107018"]
[BlackFideId "4120027"]
[WhiteElo "1883"]
[BlackElo "2455"]
[WhiteTeam "RUS"]
[BlackTeam "RUS"]
[WhiteClock "0:00:00"]
[BlackClock "0:00:12"]

1. d4 {[%clk 0:03:00]}  d5 {[%clk 0:02:57]} 2. c4 {[%clk 0:03:01]}  c6 {[%clk 0:02:57]} 3. Nf3 {[%clk 0:03:01]}  Nf6 {[%clk 0:02:56]} 4. Qb3 {[%clk 0:03:01]}  dxc4 {[%clk 0:02:55]} 5. Qxc4 {[%clk 0:03:02]}  Bf5 {[%clk 0:02:55]} 6. g3 {[%clk 0:03:02]}  e6 {[%clk 0:02:55]} 7. Bg2 {[%clk 0:03:03]}  Be7 {[%clk 0:02:55]} 8. O-O {[%clk 0:03:03]}  Nbd7 {[%clk 0:02:56]} 9. Nc3 {[%clk 0:03:04]}  O-O {[%clk 0:02:55]} 10. Re1 {[%clk 0:03:02]}  h6 {[%clk 0:02:49]} 11. Qb3 {[%clk 0:03:02]}  Qb6 {[%clk 0:02:37]} 12. e4 {[%clk 0:02:59]}  Bg6 {[%clk 0:02:37]} 13. Nh4 {[%clk 0:02:49]}  Bh7 {[%clk 0:02:32]} 14. Be3 {[%clk 0:02:48]}  Ng4 {[%clk 0:02:23]} 15. Rad1 {[%clk 0:02:14]}  Nxe3 {[%clk 0:02:17]} 16. Rxe3 {[%clk 0:02:15]}  Bxh4 {[%clk 0:01:41]} 17. gxh4 {[%clk 0:02:16]}  Qxb3 {[%clk 0:01:41]} 18. axb3 {[%clk 0:02:16]}  Rfd8 {[%clk 0:01:39]} 19. d5 {[%clk 0:02:05]}  Ne5 {[%clk 0:01:21]} 20. f4 {[%clk 0:01:49]}  Ng6 {[%clk 0:01:18]} 21. dxe6 {[%clk 0:01:28]}  Rxd1+ {[%clk 0:01:15]} 22. Nxd1 {[%clk 0:01:29]}  fxe6 {[%clk 0:01:09]} 23. f5 {[%clk 0:01:15]}  Nxh4 {[%clk 0:00:55]} 24. fxe6 {[%clk 0:00:40]}  Nxg2 {[%clk 0:00:52]} 25. Kxg2 {[%clk 0:00:41]}  Re8 {[%clk 0:00:52]} 26. Nf2 {[%clk 0:00:35]}  Rxe6 {[%clk 0:00:52]} 27. e5 {[%clk 0:00:23]}  Kf7 {[%clk 0:00:48]} 28. Kf3 {[%clk 0:00:18]}  Re7 {[%clk 0:00:44]} 29. Kf4 {[%clk 0:00:17]}  Ke6 {[%clk 0:00:43]} 30. Ne4 {[%clk 0:00:14]}  Rf7+ {[%clk 0:00:42]} 31. Kg3 {[%clk 0:00:14]}  Bxe4 {[%clk 0:00:42]} 32. Rxe4 {[%clk 0:00:15]}  Rf5 {[%clk 0:00:42]} 33. Rg4 {[%clk 0:00:14]}  g5 {[%clk 0:00:37]} 34. Rb4 {[%clk 0:00:14]}  b5 {[%clk 0:00:35]} 35. Rd4 {[%clk 0:00:12]}  Rxe5 {[%clk 0:00:35]} 36. Rd8 {[%clk 0:00:12]}  Re3+ {[%clk 0:00:35]} 37. Kg4 {[%clk 0:00:12]}  Rxb3 {[%clk 0:00:35]} 38. Rh8 {[%clk 0:00:12]}  Rxb2 {[%clk 0:00:32]} 39. Rxh6+ {[%clk 0:00:13]}  Ke5 {[%clk 0:00:27]} 40. Rxc6 {[%clk 0:00:10]}  a5 {[%clk 0:00:23]} 41. Rc5+ {[%clk 0:00:09]}  Kd4 {[%clk 0:00:22]} 42. Rxg5 {[%clk 0:00:08]}  Rg2+ {[%clk 0:00:21]} 43. Kf4 {[%clk 0:00:07]}  Rxh2 {[%clk 0:00:17]} 44. Rxb5 {[%clk 0:00:06]}  Ra2 {[%clk 0:00:17]} 45. Rb8 {[%clk 0:00:06]}  a4 {[%clk 0:00:17]} 46. Ra8 {[%clk 0:00:04]}  Ra1 {[%clk 0:00:15]} 47. Kf3 {[%clk 0:00:03]}  Kd3 {[%clk 0:00:14]} 48. Kg2 {[%clk 0:00:03]}  a3 {[%clk 0:00:14]} 49. Ra7 {[%clk 0:00:02]}  Kc3 {[%clk 0:00:13]} 50. Rf7 {[%clk 0:00:00]}  Rd1 {[%clk 0:00:12]} 0-1

[Event "November 21 Early 2023"]
[Site "https://www.chess.com"]
[Date "2023.11.21"]
[Round "7"]
[White "vishwa_vijeta"]
[Black "Marin Pincheira, Carlos"]
[Result "1-0"]
[Board "150"]
[TimeControl "180+1"]
[BlackFideId "3407543"]
[WhiteElo "2508"]
[BlackElo "2080"]
[BlackTeam "CHI"]
[WhiteClock "0:01:47"]
[BlackClock "0:00:04"]

1. e4 {[%clk 0:02:59]}  c5 {[%clk 0:02:08]} 2. Nf3 {[%clk 0:02:58]}  d6 {[%clk 0:02:07]} 3. d4 {[%clk 0:02:57]}  cxd4 {[%clk 0:02:08]} 4. Nxd4 {[%clk 0:02:58]}  Nf6 {[%clk 0:02:08]} 5. Nc3 {[%clk 0:02:59]}  a6 {[%clk 0:02:08]} 6. Bg5 {[%clk 0:02:59]}  e6 {[%clk 0:02:08]} 7. f4 {[%clk 0:02:44]}  Be7 {[%clk 0:02:07]} 8. Qf3 {[%clk 0:02:42]}  h6 {[%clk 0:02:06]} 9. Bh4 {[%clk 0:02:42]}  g5 {[%clk 0:02:05]} 10. fxg5 {[%clk 0:02:40]}  Nfd7 {[%clk 0:02:05]} 11. Nxe6 {[%clk 0:02:39]}  fxe6 {[%clk 0:02:04]} 12. Qh5+ {[%clk 0:02:38]}  Kf8 {[%clk 0:02:05]} 13. Bb5 {[%clk 0:02:36]}  Rh7 {[%clk 0:02:05]} 14. e5 {[%clk 0:02:05]}  Nxe5 {[%clk 0:01:58]} 15. O-O+ {[%clk 0:02:04]}  Kg8 {[%clk 0:01:57]} 16. g6 {[%clk 0:02:04]}  Rg7 {[%clk 0:01:57]} 17. Bxe7 {[%clk 0:01:57]}  Qxe7 {[%clk 0:01:55]} 18. Ne4 {[%clk 0:01:57]}  Rxg6 {[%clk 0:01:20]} 19. Be8 {[%clk 0:01:55]}  Kg7 {[%clk 0:00:25]} 20. Bxg6 {[%clk 0:01:53]}  Nxg6 {[%clk 0:00:25]} 21. Rf6 {[%clk 0:01:53]}  Ne5 {[%clk 0:00:15]} 22. Qxh6+ {[%clk 0:01:53]}  Kg8 {[%clk 0:00:16]} 23. Qg5+ {[%clk 0:01:53]}  Qg7 {[%clk 0:00:15]} 24. Qh4 {[%clk 0:01:49]}  Nbd7 {[%clk 0:00:13]} 25. Raf1 {[%clk 0:01:48]}  Nxf6 {[%clk 0:00:10]} 26. Nxf6+ {[%clk 0:01:48]}  Kf8 {[%clk 0:00:06]} 27. Nh5+ {[%clk 0:01:47]}  Qf7 {[%clk 0:00:04]} 28. Qd8# {[%clk 0:01:47]} 1-0

[Event "November 21 Early 2023"]
[Site "https://www.chess.com"]
[Date "2023.11.21"]
[Round "7"]
[White "danshev16"]
[Black "Umarov, Sabir"]
[Result "1-0"]
[Board "151"]
[TimeControl "180+1"]
[BlackFideId "14200538"]
[WhiteElo "2507"]
[BlackElo "2335"]
[BlackTeam "UZB"]
[WhiteClock "0:00:31"]
[BlackClock "0:00:00"]

1. d3 {[%clk 0:02:56]}  g6 {[%clk 0:02:57]} 2. c3 {[%clk 0:02:55]}  Bg7 {[%clk 0:02:57]} 3. Nd2 {[%clk 0:02:55]}  d5 {[%clk 0:02:56]} 4. h3 {[%clk 0:02:53]}  Nf6 {[%clk 0:02:49]} 5. g4 {[%clk 0:02:53]}  O-O {[%clk 0:02:49]} 6. Bg2 {[%clk 0:02:53]}  c6 {[%clk 0:02:49]} 7. Nf1 {[%clk 0:02:52]}  e5 {[%clk 0:02:49]} 8. Ng3 {[%clk 0:02:51]}  Re8 {[%clk 0:02:48]} 9. g5 {[%clk 0:02:50]}  Nfd7 {[%clk 0:02:46]} 10. h4 {[%clk 0:02:50]}  Nf8 {[%clk 0:02:45]} 11. h5 {[%clk 0:02:50]}  Na6 {[%clk 0:02:38]} 12. Qa4 {[%clk 0:02:49]}  Nc5 {[%clk 0:02:35]} 13. Qh4 {[%clk 0:02:48]}  a5 {[%clk 0:01:35]} 14. Be3 {[%clk 0:02:45]}  Nce6 {[%clk 0:01:34]} 15. Nh3 {[%clk 0:02:43]}  d4 {[%clk 0:01:34]} 16. Bd2 {[%clk 0:02:42]}  dxc3 {[%clk 0:01:29]} 17. bxc3 {[%clk 0:02:41]}  Nc5 {[%clk 0:01:06]} 18. Ne4 {[%clk 0:02:41]}  Nxe4 {[%clk 0:01:05]} 19. Bxe4 {[%clk 0:02:41]}  Bxh3 {[%clk 0:00:59]} 20. Rxh3 {[%clk 0:02:40]}  Qe7 {[%clk 0:00:53]} 21. Rb1 {[%clk 0:02:38]}  Reb8 {[%clk 0:00:40]} 22. a4 {[%clk 0:02:37]}  Ra6 {[%clk 0:00:37]} 23. f4 {[%clk 0:02:23]}  exf4 {[%clk 0:00:35]} 24. hxg6 {[%clk 0:02:16]}  fxg6 {[%clk 0:00:30]} 25. Qxf4 {[%clk 0:02:10]}  Re8 {[%clk 0:00:30]} 26. Qh4 {[%clk 0:01:39]}  Qc5 {[%clk 0:00:28]} 27. Qf2 {[%clk 0:01:34]}  Qxf2+ {[%clk 0:00:25]} 28. Kxf2 {[%clk 0:01:35]}  Nd7 {[%clk 0:00:17]} 29. Rxb7 {[%clk 0:01:34]}  Nc5 {[%clk 0:00:18]} 30. Rxg7+ {[%clk 0:01:16]}  Kxg7 {[%clk 0:00:17]} 31. Bf3 {[%clk 0:01:17]}  Nxa4 {[%clk 0:00:15]} 32. Be3 {[%clk 0:01:17]}  c5 {[%clk 0:00:14]} 33. Rh1 {[%clk 0:01:14]}  Rae6 {[%clk 0:00:14]} 34. Bd2 {[%clk 0:01:09]}  Nb6 {[%clk 0:00:11]} 35. Ra1 {[%clk 0:01:03]}  a4 {[%clk 0:00:12]} 36. c4 {[%clk 0:01:03]}  R6e7 {[%clk 0:00:08]} 37. Bc3+ {[%clk 0:01:00]}  Kg8 {[%clk 0:00:07]} 38. Ba5 {[%clk 0:00:52]}  Rb8 {[%clk 0:00:06]} 39. Bc3 {[%clk 0:00:41]}  Ra7 {[%clk 0:00:05]} 40. Be5 {[%clk 0:00:37]}  Rf8 {[%clk 0:00:03]} 41. Bd6 {[%clk 0:00:37]}  Rc8 {[%clk 0:00:04]} 42. Rb1 {[%clk 0:00:33]}  a3 {[%clk 0:00:03]} 43. Rxb6 {[%clk 0:00:30]}  a2 {[%clk 0:00:00]} 44. Bd5+ {[%clk 0:00:31]} 1-0

[Event "November 21 Early 2023"]
[Site "https://www.chess.com"]
[Date "2023.11.21"]
[Round "7"]
[White "Kubicka, Anna"]
[Black "Maect19"]
[Result "1-0"]
[Board "155"]
[TimeControl "180+1"]
[WhiteFideId "1152254"]
[WhiteElo "2042"]
[BlackElo "2329"]
[WhiteTeam "POL"]
[WhiteClock "0:00:37"]
[BlackClock "0:00:31"]

1. e4 {[%clk 0:03:00]}  e5 {[%clk 0:02:57]} 2. Nf3 {[%clk 0:03:00]}  Nc6 {[%clk 0:02:57]} 3. Bb5 {[%clk 0:03:01]}  Nge7 {[%clk 0:02:57]} 4. O-O {[%clk 0:03:01]}  g6 {[%clk 0:02:57]} 5. d4 {[%clk 0:03:00]}  exd4 {[%clk 0:02:56]} 6. Nxd4 {[%clk 0:03:00]}  Bg7 {[%clk 0:02:56]} 7. Be3 {[%clk 0:03:00]}  O-O {[%clk 0:02:56]} 8. Nc3 {[%clk 0:02:59]}  a6 {[%clk 0:02:56]} 9. Be2 {[%clk 0:02:57]}  d6 {[%clk 0:02:55]} 10. f4 {[%clk 0:02:54]}  f5 {[%clk 0:02:53]} 11. Bf3 {[%clk 0:02:49]}  fxe4 {[%clk 0:02:50]} 12. Bxe4 {[%clk 0:02:45]}  Nf5 {[%clk 0:02:47]} 13. Nxf5 {[%clk 0:02:43]}  Bxf5 {[%clk 0:02:46]} 14. Bxc6 {[%clk 0:02:35]}  bxc6 {[%clk 0:02:44]} 15. Bd4 {[%clk 0:02:35]}  Bxd4+ {[%clk 0:02:24]} 16. Qxd4 {[%clk 0:02:36]}  c5 {[%clk 0:02:18]} 17. Qc4+ {[%clk 0:02:28]}  Kg7 {[%clk 0:02:17]} 18. Nd5 {[%clk 0:02:26]}  Be6 {[%clk 0:02:10]} 19. Rae1 {[%clk 0:02:11]}  Bxd5 {[%clk 0:02:03]} 20. Qxd5 {[%clk 0:02:12]}  Qf6 {[%clk 0:02:01]} 21. c3 {[%clk 0:01:51]}  Rab8 {[%clk 0:02:00]} 22. f5 {[%clk 0:01:46]}  g5 {[%clk 0:01:37]} 23. Re6 {[%clk 0:01:44]}  Qf7 {[%clk 0:01:36]} 24. f6+ {[%clk 0:01:41]}  Kh8 {[%clk 0:01:29]} 25. Qxg5 {[%clk 0:00:57]}  Rg8 {[%clk 0:01:21]} 26. Qf5 {[%clk 0:00:57]}  Rxb2 {[%clk 0:01:13]} 27. g3 {[%clk 0:00:56]}  Qg6 {[%clk 0:00:45]} 28. f7 {[%clk 0:00:38]}  Rf8 {[%clk 0:00:31]} 29. Rxg6 {[%clk 0:00:37]} 1-0

[Event "November 21 Early 2023"]
[Site "https://www.chess.com"]
[Date "2023.11.21"]
[Round "7"]
[White "Toktomushev, Teimur"]
[Black "Hoffmann, Asa"]
[Result "1-0"]
[Board "156"]
[TimeControl "180+1"]
[WhiteFideId "14176726"]
[BlackFideId "2001470"]
[WhiteElo "2198"]
[BlackElo "2117"]
[WhiteTeam "UKR"]
[BlackTeam "USA"]
[WhiteClock "0:00:03"]
[BlackClock "0:00:14"]

1. d4 {[%clk 0:03:00]}  Nf6 {[%clk 0:02:56]} 2. c4 {[%clk 0:03:01]}  c5 {[%clk 0:02:55]} 3. d5 {[%clk 0:03:01]}  e5 {[%clk 0:02:55]} 4. Nc3 {[%clk 0:03:01]}  d6 {[%clk 0:02:55]} 5. e4 {[%clk 0:03:01]}  Be7 {[%clk 0:02:54]} 6. Nf3 {[%clk 0:03:01]}  Nbd7 {[%clk 0:02:54]} 7. g3 {[%clk 0:02:49]}  O-O {[%clk 0:02:49]} 8. Bg2 {[%clk 0:02:50]}  b5 {[%clk 0:02:49]} 9. cxb5 {[%clk 0:02:49]}  a6 {[%clk 0:02:49]} 10. b6 {[%clk 0:02:40]}  Qxb6 {[%clk 0:02:47]} 11. O-O {[%clk 0:02:40]}  a5 {[%clk 0:02:46]} 12. Re1 {[%clk 0:02:38]}  Ba6 {[%clk 0:02:46]} 13. Bf1 {[%clk 0:02:34]}  Rfb8 {[%clk 0:02:43]} 14. Bxa6 {[%clk 0:02:17]}  Qxa6 {[%clk 0:02:42]} 15. a4 {[%clk 0:02:14]}  c4 {[%clk 0:02:39]} 16. Nb5 {[%clk 0:02:10]}  Rc8 {[%clk 0:02:37]} 17. Nd2 {[%clk 0:01:49]}  Nc5 {[%clk 0:02:34]} 18. Qc2 {[%clk 0:01:00]}  Nd3 {[%clk 0:02:31]} 19. Rf1 {[%clk 0:00:53]}  Nb4 {[%clk 0:02:25]} 20. Qc3 {[%clk 0:00:44]}  Bd8 {[%clk 0:02:24]} 21. Kg2 {[%clk 0:00:36]}  Bb6 {[%clk 0:02:18]} 22. f3 {[%clk 0:00:26]}  Nd7 {[%clk 0:01:53]} 23. Nxc4 {[%clk 0:00:22]}  Bd4 {[%clk 0:01:45]} 24. Qb3 {[%clk 0:00:15]}  Nc5 {[%clk 0:01:43]} 25. Qd1 {[%clk 0:00:10]}  Nb7 {[%clk 0:01:29]} 26. Qe2 {[%clk 0:00:07]}  Nc5 {[%clk 0:01:15]} 27. Be3 {[%clk 0:00:05]}  Nb3 {[%clk 0:00:59]} 28. Rad1 {[%clk 0:00:02]}  Bxe3 {[%clk 0:00:50]} 29. Nxe3 {[%clk 0:00:03]}  Nc5 {[%clk 0:00:45]} 30. Rc1 {[%clk 0:00:02]}  Nxa4 {[%clk 0:00:43]} 31. Rxc8+ {[%clk 0:00:02]}  Rxc8 {[%clk 0:00:43]} 32. Rf2 {[%clk 0:00:02]}  Nxb2 {[%clk 0:00:41]} 33. Nf5 {[%clk 0:00:02]}  Nc4 {[%clk 0:00:37]} 34. Ne7+ {[%clk 0:00:02]}  Kf8 {[%clk 0:00:37]} 35. Nxc8 {[%clk 0:00:03]}  Qxc8 {[%clk 0:00:37]} 36. Qe1 {[%clk 0:00:01]}  Qc5 {[%clk 0:00:37]} 37. Nc3 {[%clk 0:00:02]}  Nd3 {[%clk 0:00:37]} 38. Qe2 {[%clk 0:00:01]}  Qxf2+ {[%clk 0:00:37]} 39. Qxf2 {[%clk 0:00:02]}  Nxf2 {[%clk 0:00:37]} 40. Kxf2 {[%clk 0:00:03]}  Nb6 {[%clk 0:00:36]} 41. Ke2 {[%clk 0:00:03]}  Ke7 {[%clk 0:00:37]} 42. Kd3 {[%clk 0:00:03]}  g6 {[%clk 0:00:37]} 43. Kc2 {[%clk 0:00:02]}  f5 {[%clk 0:00:37]} 44. Kb3 {[%clk 0:00:01]}  Kf6 {[%clk 0:00:36]} 45. h4 {[%clk 0:00:02]}  h6 {[%clk 0:00:35]} 46. Na4 {[%clk 0:00:01]}  Nxa4 {[%clk 0:00:33]} 47. Kxa4 {[%clk 0:00:02]}  g5 {[%clk 0:00:33]} 48. hxg5+ {[%clk 0:00:01]}  Kxg5 {[%clk 0:00:32]} 49. Kxa5 {[%clk 0:00:01]}  f4 {[%clk 0:00:31]} 50. g4 {[%clk 0:00:01]}  h5 {[%clk 0:00:32]} 51. gxh5 {[%clk 0:00:02]}  Kxh5 {[%clk 0:00:32]} 52. Kb6 {[%clk 0:00:03]}  Kh4 {[%clk 0:00:32]} 53. Kc6 {[%clk 0:00:03]}  Kg3 {[%clk 0:00:32]} 54. Kxd6 {[%clk 0:00:04]}  Kxf3 {[%clk 0:00:32]} 55. Kxe5 {[%clk 0:00:05]}  Ke3 {[%clk 0:00:32]} 56. d6 {[%clk 0:00:05]}  f3 {[%clk 0:00:32]} 57. d7 {[%clk 0:00:05]}  f2 {[%clk 0:00:33]} 58. d8=Q {[%clk 0:00:05]}  f1=Q {[%clk 0:00:32]} 59. Qb6+ {[%clk 0:00:05]}  Kd2 {[%clk 0:00:30]} 60. Qb2+ {[%clk 0:00:04]}  Ke3 {[%clk 0:00:28]} 61. Qc3+ {[%clk 0:00:02]}  Kf2 {[%clk 0:00:26]} 62. Qd2+ {[%clk 0:00:02]}  Kf3 {[%clk 0:00:24]} 63. Qf4+ {[%clk 0:00:02]}  Ke2 {[%clk 0:00:14]} 64. Qxf1+ {[%clk 0:00:03]} 1-0

[Event "November 21 Early 2023"]
[Site "https://www.chess.com"]
[Date "2023.11.21"]
[Round "7"]
[White "rikchessmx"]
[Black "Ongut, Tamas Gunes"]
[Result "0-1"]
[Board "157"]
[TimeControl "180+1"]
[BlackFideId "770280"]
[WhiteElo "2327"]
[BlackElo "2148"]
[BlackTeam "HUN"]
[WhiteClock "0:00:00"]
[BlackClock "0:02:27"]

1. e4 {[%clk 0:00:31]}  c5 {[%clk 0:02:57]} 2. Nf3 {[%clk 0:00:30]}  Nc6 {[%clk 0:02:57]} 3. d4 {[%clk 0:00:31]}  cxd4 {[%clk 0:02:58]} 4. Nxd4 {[%clk 0:00:31]}  d5 {[%clk 0:02:59]} 5. Nxc6 {[%clk 0:00:28]}  bxc6 {[%clk 0:02:59]} 6. e5 {[%clk 0:00:29]}  e6 {[%clk 0:02:52]} 7. f4 {[%clk 0:00:30]}  Bc5 {[%clk 0:02:51]} 8. Qg4 {[%clk 0:00:29]}  g6 {[%clk 0:02:50]} 9. Qg3 {[%clk 0:00:29]}  Ne7 {[%clk 0:02:49]} 10. Be3 {[%clk 0:00:28]}  Nf5 {[%clk 0:02:49]} 11. Bxc5 {[%clk 0:00:27]}  Nxg3 {[%clk 0:02:47]} 12. hxg3 {[%clk 0:00:28]}  Ba6 {[%clk 0:02:43]} 13. Bxa6 {[%clk 0:00:24]}  Qa5+ {[%clk 0:02:44]} 14. b4 {[%clk 0:00:24]}  Qxa6 {[%clk 0:02:45]} 15. Nd2 {[%clk 0:00:24]}  Qa3 {[%clk 0:02:42]} 16. Nb3 {[%clk 0:00:16]}  a5 {[%clk 0:02:41]} 17. bxa5 {[%clk 0:00:14]}  Qb2 {[%clk 0:02:40]} 18. O-O {[%clk 0:00:14]}  Qc3 {[%clk 0:02:38]} 19. Rf3 {[%clk 0:00:10]}  Qxc2 {[%clk 0:02:37]} 20. Bd4 {[%clk 0:00:07]}  c5 {[%clk 0:02:35]} 21. Rc3 {[%clk 0:00:07]}  Qe4 {[%clk 0:02:30]} 22. Rxc5 {[%clk 0:00:05]}  O-O {[%clk 0:02:31]} 23. Rac1 {[%clk 0:00:02]}  Qd3 {[%clk 0:02:28]} 24. Kh2 {[%clk 0:00:00]}  h5 {[%clk 0:02:27]} 0-1

[Event "November 21 Early 2023"]
[Site "https://www.chess.com"]
[Date "2023.11.21"]
[Round "7"]
[White "Pumpkin_in_moonlight"]
[Black "Luukkonen, Tommi"]
[Result "1-0"]
[Board "160"]
[TimeControl "180+1"]
[BlackFideId "501808"]
[WhiteElo "2299"]
[BlackElo "2219"]
[BlackTeam "FIN"]
[WhiteClock "0:00:06"]
[BlackClock "0:00:11"]

1. e4 {[%clk 0:03:00]}  g6 {[%clk 0:02:56]} 2. f4 {[%clk 0:02:55]}  Bg7 {[%clk 0:02:55]} 3. Nf3 {[%clk 0:02:54]}  d6 {[%clk 0:02:56]} 4. d4 {[%clk 0:02:35]}  Nf6 {[%clk 0:02:55]} 5. Bd3 {[%clk 0:02:33]}  O-O {[%clk 0:02:54]} 6. O-O {[%clk 0:02:24]}  a6 {[%clk 0:02:39]} 7. Kh1 {[%clk 0:02:19]}  b5 {[%clk 0:02:33]} 8. Be3 {[%clk 0:02:17]}  Bb7 {[%clk 0:02:28]} 9. Nbd2 {[%clk 0:02:13]}  Nbd7 {[%clk 0:02:25]} 10. Qe2 {[%clk 0:02:11]}  c5 {[%clk 0:02:24]} 11. c3 {[%clk 0:02:10]}  Qc7 {[%clk 0:02:09]} 12. a4 {[%clk 0:01:49]}  c4 {[%clk 0:02:05]} 13. Bc2 {[%clk 0:01:47]}  e5 {[%clk 0:02:00]} 14. fxe5 {[%clk 0:01:15]}  dxe5 {[%clk 0:02:01]} 15. dxe5 {[%clk 0:01:10]}  Ng4 {[%clk 0:01:58]} 16. Bd4 {[%clk 0:01:04]}  Ndxe5 {[%clk 0:01:57]} 17. h3 {[%clk 0:00:53]}  Nxf3 {[%clk 0:01:54]} 18. gxf3 {[%clk 0:00:48]}  Ne5 {[%clk 0:01:45]} 19. f4 {[%clk 0:00:47]}  Nd3 {[%clk 0:01:38]} 20. Bxd3 {[%clk 0:00:44]}  cxd3 {[%clk 0:01:36]} 21. Qxd3 {[%clk 0:00:43]}  Rad8 {[%clk 0:01:33]} 22. Kg1 {[%clk 0:00:36]}  Rfe8 {[%clk 0:01:32]} 23. Rae1 {[%clk 0:00:31]}  bxa4 {[%clk 0:01:30]} 24. e5 {[%clk 0:00:29]}  f6 {[%clk 0:01:27]} 25. e6 {[%clk 0:00:22]}  Bd5 {[%clk 0:01:25]} 26. f5 {[%clk 0:00:18]}  gxf5 {[%clk 0:01:25]} 27. Qxf5 {[%clk 0:00:17]}  Qc6 {[%clk 0:01:25]} 28. Bxf6 {[%clk 0:00:12]}  Qc5+ {[%clk 0:01:18]} 29. Rf2 {[%clk 0:00:11]}  Bxf6 {[%clk 0:01:02]} 30. Qxf6 {[%clk 0:00:10]}  Rf8 {[%clk 0:00:11]} 31. e7 {[%clk 0:00:06]} 1-0